Workbook

Sheet 南京市鼓楼区残疾人两项补贴发放统计表
A1: 鼓楼区残疾人两项补贴统计表（2025年10月）
A2: 序 号 | B2: 发 放 单 位 | C2: 困难残疾人生活补贴（万元） | Q2: 重度残疾人护理（服务）补贴（万元） | V2: 实发金额合计（万元） | W2: 拨付金额（万元）（=实发-助残服务）
C3: 低保内 | I3: 低保外 | O3: 合计 | Q3: 重残 （140元） | S3: 低保（边缘）内重残 (400元服务) | U3: 合计
C4: 重残 （低保金50%） | E4: 3、4级精、智残 （低保金40%） | G4: 非重残 （低保金25%） | I4: 重残 （低保金100%） | K4: 特殊困难残疾人 （低保金60%） | M4: 无业无收入3、4级精神、智力残 （低保金40%）
C5: 人数 | D5: 补贴 金额 | E5: 人数 | F5: 补贴 金额 | G5: 人数 | H5: 补贴 金额 | I5: 人数 | J5: 补贴 金额 | K5: 人数 | L5: 补贴 金额 | M5: 人数 | N5: 补贴 金额 | O5: 人数 | P5: 补贴 金额 | Q5: 人数 | R5: 补贴 金额 | S5: 人数 | T5: 补贴 金额 | U5: 金 额
A6: 1 | B6: 湖南路 | C6: 24 | D6: 1.338000 | E6: 8 | F6: 0.3568 | G6: 12 | H6: 0.334500 | I6: 44 | J6: 4.9060 | K6: 2 | L6: 0.1338 | M6: 24 | N6: 1.0704 | O6: =C6+E6+G6+I6+K6+M6 -> 114 | P6: =N6+L6+J6+H6+F6+D6 -> 8.139500 | Q6: 339 | R6: 4.7740 | S6: 5 | T6: =400*S6/10000 -> 0.2000 | U6: =R6+T6 -> 4.9740 | V6: =U6+P6 -> 13.113500 | W6: =V6-T6 -> 12.913500
A7: 2 | B7: 宁海路 | C7: 32 | D7: 1.784000 | E7: 24 | F7: 1.0704 | G7: 7 | H7: 0.195125 | I7: 51 | J7: 5.6865 | K7: 1 | L7: 0.0669 | M7: 33 | N7: 1.4718 | O7: 148 | P7: 10.274725 | Q7: 344 | R7: 4.8440 | S7: 9 | T7: 0.3600 | U7: 5.2040 | V7: 15.478725 | W7: 15.118725
A8: 3 | B8: 中央门 | C8: 52 | D8: 2.899000 | E8: 33 | F8: 1.4718 | G8: 28 | H8: 0.780500 | I8: 102 | J8: 11.3730 | K8: 2 | L8: 0.1338 | M8: 30 | N8: 1.3826 | O8: 247 | P8: 18.040700 | Q8: 547 | R8: 7.6860 | S8: 24 | T8: 0.9600 | U8: 8.6460 | V8: 26.686700 | W8: 25.726700
A9: 4 | B9: 挹江门 | C9: 43 | D9: =557.5*C9/10000 -> 2.397250 | E9: 18 | F9: =446*E9/10000 -> 0.8028 | G9: 18 | H9: =278.75*G9/10000+0.027875 -> 0.529625 | I9: 69 | J9: 7.8050 | K9: 2 | L9: 0.1338 | M9: 32 | N9: 1.4718 | O9: 182 | P9: 13.140275 | Q9: =413+43 -> 456 | R9: =5.81+0.602 -> 6.4120 | S9: 7 | T9: 0.2800 | U9: 6.6920 | V9: 19.832275 | W9: 19.552275
A10: 5 | B10: 华侨路 | C10: 31 | D10: =(557.5*C10/10000)+0.05575 -> 1.784000 | E10: 8 | F10: =446*E10/10000 -> 0.3568 | G10: 9 | H10: =278.75*G10/10000 -> 0.250875 | I10: 40 | J10: =1115*I10/10000 -> 4.4600 | K10: 1 | L10: =669*K10/10000 -> 0.0669 | M10: 17 | N10: =446*M10/10000 -> 0.7582 | O10: 106 | P10: 7.676775 | Q10: 264 | R10: =140*Q10/10000+0.028 -> 3.7240 | S10: 7 | T10: 0.2800 | U10: 4.0040 | V10: 11.680775 | W10: 11.400775
A11: 6 | B11: 江东 | C11: 20 | D11: 1.115000 | E11: 13 | F11: 0.5798 | G11: 5 | H11: 0.139375 | I11: 50 | J11: 5.6865 | K11: 0 | L11: 0.0000 | M11: 14 | N11: 0.6690 | O11: 102 | P11: 8.189675 | Q11: 297 | R11: 4.1580 | S11: 4 | T11: 0.1600 | U11: 4.3180 | V11: 12.507675 | W11: 12.347675
A12: 7 | B12: 凤凰 | C12: 32 | D12: 1.784000 | E12: 27 | F12: 1.2042 | G12: 27 | H12: 0.752625 | I12: 71 | J12: 7.9165 | K12: 0 | L12: 0.0000 | M12: 23 | N12: 1.1150 | O12: 180 | P12: 12.772325 | Q12: 376 | R12: 5.2640 | S12: 3 | T12: 0.1200 | U12: 5.3840 | V12: 18.156325 | W12: 18.036325
A13: 8 | B13: 热河南路 | C13: 26 | D13: 1.449500 | E13: 18 | F13: 0.8028 | G13: 19 | H13: 0.529625 | I13: 48 | J13: 5.3520 | K13: 2 | L13: =669*K13/10000 -> 0.1338 | M13: 16 | N13: 0.7136 | O13: =C13+E13+G13+I13+K13+M13 -> 129 | P13: 8.981325 | Q13: 332 | R13: 4.6760 | S13: 5 | T13: 0.2000 | U13: 4.8760 | V13: 13.857325 | W13: 13.657325
A14: 9 | B14: 下关 | C14: 58 | D14: 3.233500 | E14: 30 | F14: 1.3380 | G14: 24 | H14: 0.669000 | I14: 60 | J14: 6.6900 | K14: 0 | L14: 0.0000 | M14: 16 | N14: 0.7136 | O14: 188 | P14: 12.644100 | Q14: 392 | R14: =5.488+0.014 -> 5.5020 | S14: 10 | T14: 0.4000 | U14: 5.9020 | V14: 18.546100 | W14: 18.146100
A15: 10 | B15: 建宁路 | C15: 33 | D15: 1.839750 | E15: 29 | F15: 1.2934 | G15: 8 | H15: 0.223000 | I15: 50 | J15: 5.5750 | K15: 0 | L15: 0.0000 | M15: 15 | N15: 0.6690 | O15: 135 | P15: 9.600150 | Q15: 301 | R15: 4.2140 | S15: 4 | T15: 0.1600 | U15: 4.3740 | V15: 13.974150 | W15: 13.814150
A16: 11 | B16: 小市 | C16: 66 | D16: 3.679500 | E16: 44 | F16: 1.9624 | G16: 32 | H16: 0.892000 | I16: 76 | J16: 8.4740 | K16: 2 | L16: 0.1338 | M16: 25 | N16: 1.1150 | O16: 245 | P16: 16.256700 | Q16: 427 | R16: 6.0200 | S16: 18 | T16: =400*S16/10000 -> 0.7200 | U16: 6.7400 | V16: 22.996700 | W16: 22.276700
A17: 12 | B17: 宝塔桥 | C17: 99 | D17: 5.575000 | E17: 68 | F17: 3.0328 | G17: 45 | H17: 1.254375 | I17: 71 | J17: 8.2510 | K17: 0 | L17: 0.0000 | M17: 54 | N17: 2.4084 | O17: 337 | P17: 20.521575 | Q17: 507 | R17: 7.1680 | S17: 24 | T17: 0.9600 | U17: 8.1280 | V17: 28.649575 | W17: 27.689575
A18: 13 | B18: 幕府山 | C18: 51 | D18: 2.899000 | E18: 31 | F18: 1.3826 | G18: 22 | H18: 0.613250 | I18: 61 | J18: 6.8015 | K18: 0 | L18: =591*K18/10000 -> 0.0000 | M18: 14 | N18: 0.6244 | O18: 179 | P18: =D18+F18+H18+J18+L18+N18 -> 12.320750 | Q18: 319 | R18: 4.4800 | S18: 7 | T18: 0.2800 | U18: 4.7600 | V18: =P18+U18 -> 17.080750 | W18: 16.800750
A19: 合计 | C19: =SUM(C6:C18) -> 567 | D19: 31.777500 | E19: 351 | F19: 15.6546 | G19: 256 | H19: 7.163875 | I19: 793 | J19: 88.9770 | K19: 12 | L19: 0.8028 | M19: 313 | N19: 14.1828 | O19: 2292 | P19: 158.558575 | Q19: 4901 | R19: 68.9220 | S19: 127 | T19: 5.0800 | U19: 74.0020 | V19: 232.560575 | W19: 227.480575
A20: 备注 | C20: 鼓楼区10月补发：1、生活补贴：低内50%，3人1672.5元；低内25%，1人278.75元；低外100%，5人5575元；低外40%，5人2230元。合计9756.25元。2、护理补贴：22人3080元。 | U20: =P19+U19 -> 232.560575
